bitfinex/quotes_BTCUSD_20220731
["timestamp","ask_amount","ask_price","bid_price","bid_amount"]
[1659307744465,0.50844145,23266.0,23265.0,0.107418]
[1659307744707,0.50844145,23266.0,23264.0,0.157401]
[1659307744941,0.73270716,23265.0,23264.0,0.107401]
[1659307745162,0.42870616,23265.0,23264.0,0.10747777]
[1659307745392,0.42870616,23265.0,23264.0,0.107401]
[1659307745625,0.8492,23275.0,23265.0,0.00041139]
[1659307745859,0.42870616,23274.0,23268.0,0.107394]
[1659307746074,0.304001,23273.0,23269.0,0.05]
[1659307746348,0.42870616,23272.0,23270.0,7.675e-05]
[1659307746584,0.704001,23271.0,23270.0,7.675e-05]
[1659307746826,0.82870616,23271.0,23269.0,0.05]
[1659307747057,0.42870616,23270.0,23269.0,0.05]
[1659307747300,0.42870616,23270.0,23269.0,0.05007675]
[1659307748205,0.50770616,23270.0,23269.0,0.05007675]
[1659307748684,0.50770616,23270.0,23269.0,0.30561328]
[1659307748685,0.079,23270.0,23269.0,0.30561328]
[1659307748943,0.079,23270.0,23269.0,0.60602467]
[1659307749640,0.8113,23278.0,23269.0,0.60602467]
[1659307749878,0.42870616,23275.0,23271.0,0.05]
[1659307750110,0.77340908,23274.0,23265.0,0.04907539]
[1659307750352,0.77340908,23274.0,23264.0,0.03180321]
[1659307750353,0.079,23270.0,23266.0,0.107409]
[1659307750601,0.42870616,23269.0,23266.0,0.10729057]
[1659307750840,0.42870616,23269.0,23263.0,0.107417]
[1659307751064,0.304001,23268.0,23263.0,0.16723364]
[1659307751292,0.42870616,23269.0,23261.0,1.299922]
[1659307751293,0.42870616,23267.0,23261.0,0.04460096]
[1659307751530,0.42870616,23267.0,23260.0,0.1489124]
[1659307751531,0.304001,23266.0,23260.0,0.1489124]
[1659307751742,0.04958861,23269.0,23260.0,0.1489124]
[1659307751743,0.73270716,23265.0,23260.0,0.1489124]
[1659307751986,0.04958861,23269.0,23260.0,0.107409]
[1659307751987,0.42870616,23264.0,23260.0,0.107409]
[1659307752668,0.04070192,23263.0,23260.0,0.457409]
[1659307752918,0.46940808,23263.0,23260.0,0.457409]
[1659307753378,0.49940808,23263.0,23260.0,0.157409]
[1659307753798,0.05,23262.0,23260.0,0.157409]
[1659307754042,0.45870616,23263.0,23260.0,0.157409]
[1659307754265,0.53870616,23263.0,23260.0,0.157409]
[1659307754526,0.05,23262.0,23260.0,0.157409]
[1659307754749,0.03,23262.0,23260.0,0.157409]
[1659307754987,0.03,23262.0,23260.0,0.264834]
[1659307755208,0.50870616,23263.0,23260.0,0.564834]
[1659307755449,0.53870616,23263.0,23260.0,0.564834]
[1659307755673,0.05,23262.0,23260.0,0.564834]
[1659307755904,0.07070192,23262.0,23260.0,0.107409]
[1659307756122,0.03,23262.0,23260.0,0.107409]
[1659307756355,0.53870616,23263.0,23260.0,0.107409]
[1659307756637,0.53870616,23263.0,23260.0,0.157409]
[1659307756873,0.53870616,23263.0,23261.0,0.107434]
[1659307756874,0.05,23262.0,23261.0,0.107434]
[1659307757114,0.53870616,23263.0,23261.0,0.107434]
[1659307757802,0.46337932,23263.0,23261.0,0.107434]
[1659307758027,0.45870616,23263.0,23261.0,0.107434]
[1659307758266,0.53270616,23263.0,23261.0,0.107434]
[1659307758751,0.50270616,23263.0,23261.0,0.407434]
[1659307759231,0.56737932,23263.0,23261.0,0.107434]
[1659307759450,0.57340808,23263.0,23261.0,0.107434]
[1659307759674,0.49940808,23263.0,23261.0,0.107434]
[1659307760354,0.53270616,23263.0,23261.0,0.107434]
[1659307760637,0.53270616,23263.0,23261.0,0.407434]
[1659307760869,0.05,23262.0,23261.0,0.8378747]
[1659307761095,0.50270616,23263.0,23261.0,0.8378747]
[1659307761305,0.4,23262.0,23261.0,0.537128]
[1659307761521,0.42870616,23262.0,23261.0,0.532128]
[1659307762088,0.42870616,23262.0,23261.0,0.609128]
[1659307763463,0.42870616,23262.0,23261.0,0.909128]
[1659307763686,0.42870616,23262.0,23261.0,0.479434]
[1659307763915,0.42870616,23262.0,23261.0,0.179434]
[1659307764129,0.42870616,23262.0,23261.0,0.102434]
[1659307764422,0.42870616,23262.0,23261.0,0.178434]
[1659307765075,0.43473492,23262.0,23261.0,0.178434]
[1659307765297,0.42870616,23262.0,23261.0,0.178434]
[1659307765514,0.42870616,23262.0,23261.0,0.102434]
[1659307766167,0.42870616,23262.0,23261.0,0.178434]
[1659307766384,0.42870616,23262.0,23261.0,0.228434]
[1659307766609,0.43473492,23262.0,23261.0,0.178434]
[1659307766841,0.43473492,23262.0,23261.0,0.076]
[1659307766842,0.77340908,23262.0,23261.0,0.076]
[1659307767079,0.77340908,23262.0,23261.0,0.046]
[1659307767526,0.73270716,23262.0,23261.0,0.107442]
[1659307767749,0.42870616,23262.0,23261.0,0.107442]
[1659307768678,0.42870616,23262.0,23261.0,0.157442]
[1659307769099,0.42870616,23262.0,23261.0,0.35]
[1659307769982,0.42870616,23262.0,23261.0,0.457435]
[1659307770194,0.46940808,23262.0,23261.0,0.157435]
[1659307770616,0.46940808,23262.0,23260.0,0.322293]
[1659307770839,0.49940808,23262.0,23260.0,0.372293]
[1659307771055,0.49940808,23262.0,23260.0,0.102409]
[1659307771056,0.55870616,23261.0,23260.0,0.102409]
[1659307771273,0.73270716,23261.0,23260.0,0.102409]
[1659307772626,0.13,23259.0,23258.0,0.03279505]
[1659307772855,0.17958861,23257.0,23254.0,0.0031]
[1659307773083,0.13,23255.0,23254.0,0.0031]
[1659307773376,1.15770716,23255.0,23254.0,0.0031]
[1659307773611,0.85770716,23255.0,23254.0,0.0031]
[1659307774068,0.85770706,23255.0,23254.0,0.0031]
[1659307774292,0.85770706,23255.0,23254.0,0.002]
[1659307774515,1.20770706,23255.0,23254.0,0.002]
[1659307774736,0.90770706,23255.0,23254.0,0.002]
[1659307776100,0.85770706,23255.0,23254.0,0.002]
[1659307776327,0.16570182,23254.0,23253.0,0.002]
[1659307776562,0.2249999,23252.0,23251.0,0.12]
[1659307776781,0.83270716,23252.0,23251.0,0.12]
[1659307777210,0.88270716,23252.0,23251.0,0.12]
[1659307777435,0.83270716,23252.0,23251.0,0.12]
[1659307777647,0.88270716,23252.0,23251.0,0.12]
[1659307778309,0.83270716,23252.0,23251.0,0.12]
[1659307780046,0.88270716,23252.0,23251.0,0.12]
[1659307780271,0.83270716,23252.0,23251.0,0.12]
[1659307780725,0.88270716,23252.0,23251.0,0.12]
[1659307782328,1.1249999,23251.0,23250.0,0.002]
[1659307782567,1.85770706,23251.0,23250.0,0.002]
[1659307783265,1.89840898,23251.0,23250.0,0.002]
[1659307783563,0.2249999,23250.0,23249.0,0.00619381]
[1659307783773,0.2249999,23250.0,23246.0,0.002]
[1659307783774,0.1249999,23247.0,23246.0,0.002]
[1659307784011,1.60329467,23247.0,23246.0,0.002]
[1659307784238,1.99799759,23247.0,23246.0,0.002]
[1659307785622,0.89840898,23247.0,23246.0,0.002]
[1659307785852,0.42870616,23247.0,23246.0,0.0448]
[1659307786122,0.73270716,23247.0,23246.0,0.002]
[1659307786812,0.73270716,23247.0,23243.0,0.0011]
[1659307786813,0.1,23245.0,23244.0,0.0001]
[1659307787045,0.83270716,23245.0,23244.0,0.0001]
[1659307787549,0.83270716,23245.0,23243.0,0.0011]
[1659307787550,1.1749999,23244.0,23243.0,0.001]
[1659307787769,1.90770706,23244.0,23243.0,0.001]
[1659307788706,0.1259999,23243.0,23242.0,0.0011]
[1659307788940,0.85870706,23243.0,23242.0,0.0011]
[1659307789461,0.0439,23242.0,23241.0,0.002]
[1659307789670,0.2509,23240.0,23239.0,0.002]
[1659307789893,0.57960616,23240.0,23239.0,0.002]
[1659307790129,0.57960616,23240.0,23239.0,0.0448]
[1659307790130,0.1509,23240.0,23239.0,0.0448]
[1659307790339,0.1509,23240.0,23239.0,0.1143018]
[1659307790827,0.1509,23240.0,23239.0,0.0715018]
[1659307791059,0.1509,23240.0,23239.0,0.10885832]
[1659307792214,0.2259,23240.0,23239.0,0.10885832]
[1659307793655,0.1509,23240.0,23239.0,0.10885832]
[1659307794270,0.2259,23240.0,23239.0,0.10937662]
[1659307794582,0.2259,23240.0,23239.0,0.10885832]
[1659307794786,0.2259,23240.0,23239.0,0.05885832]
[1659307794994,0.2259,23240.0,23239.0,0.10885832]
[1659307795248,0.65460616,23240.0,23239.0,0.002]
[1659307795468,0.88360716,23240.0,23239.0,0.002]
[1659307796096,0.95660716,23240.0,23239.0,0.002]
[1659307796306,0.1249999,23239.0,23235.0,0.5]
[1659307796522,1.22870616,23236.0,23235.0,0.50007295]
[1659307796735,0.73873592,23236.0,23235.0,0.50007295]
[1659307796957,0.42870616,23236.0,23235.0,0.50017988]
[1659307797173,0.42870616,23236.0,23235.0,0.50007295]
[1659307797391,0.42870616,23236.0,23235.0,0.5]
[1659307797606,0.42870616,23236.0,23235.0,0.54943994]
[1659307797809,0.42870616,23236.0,23235.0,0.5]
[1659307797810,1.02704005,23236.0,23235.0,0.5]
[1659307798018,1.02704005,23236.0,23235.0,0.50203729]
[1659307798019,1.29033913,23236.0,23235.0,0.50203729]
[1659307798225,1.42033913,23236.0,23235.0,0.5]
[1659307798840,1.46104105,23236.0,23235.0,0.5]
[1659307799288,1.37033913,23236.0,23235.0,0.5]
[1659307799726,1.4200633,23236.0,23235.0,0.5]
[1659307799963,1.33076522,23236.0,23235.0,0.5]
[1659307800184,1.41076522,23236.0,23235.0,0.5]
[1659307800417,1.3700633,23236.0,23233.0,0.002]
[1659307800667,1.3700633,23236.0,23234.0,0.04321139]
[1659307800668,0.47870616,23235.0,23234.0,0.04321139]
[1659307800903,0.08,23236.0,23235.0,0.23657853]
[1659307801122,0.08,23236.0,23235.0,0.24377853]
[1659307801621,0.73858769,23240.0,23235.0,0.18381139]
[1659307801849,0.47870616,23239.0,23236.0,0.04709909]
[1659307802077,0.42870616,23238.0,23236.0,0.04709909]
[1659307802318,0.05,23237.0,23236.0,0.04709909]
[1659307802547,0.45370606,23238.0,23236.0,0.04709909]
[1659307802771,0.46940808,23238.0,23234.0,0.05125283]
[1659307803008,0.42870616,23237.0,23234.0,0.04944503]
[1659307803239,0.42870616,23237.0,23233.0,0.002]
[1659307803240,0.1249999,23235.0,23233.0,0.002]
[1659307803473,1.10370606,23234.0,23233.0,0.002]
[1659307803697,0.55370606,23234.0,23233.0,0.002]
[1659307804202,0.55370606,23234.0,23233.0,0.09511482]
[1659307804203,0.42870616,23234.0,23233.0,0.09511482]
[1659307804450,0.48970616,23234.0,23233.0,0.14511482]
[1659307804696,0.061,23234.0,23233.0,0.14552621]
[1659307804928,0.061,23234.0,23233.0,0.27812621]
[1659307805146,0.061,23234.0,23233.0,0.62307969]
[1659307805391,0.061,23234.0,23233.0,1.03027969]
[1659307805618,0.1509,23240.0,23239.0,0.09321139]
[1659307805854,0.1509,23240.0,23239.0,0.24053305]
[1659307805855,0.63642154,23240.0,23239.0,0.24053305]
[1659307806090,0.63642154,23240.0,23239.0,0.24063004]
[1659307806363,0.70342154,23240.0,23239.0,0.24063004]
[1659307806593,0.2179,23240.0,23239.0,0.24063004]
[1659307807058,0.0177,23254.0,23239.0,0.24063004]
[1659307807059,1.45281316,23255.0,23242.0,0.107498]
[1659307807290,0.42870616,23254.0,23245.0,0.107485]
[1659307807516,0.42870616,23254.0,23248.0,0.1334]
[1659307807751,0.42870616,23254.0,23249.0,0.05354006]
[1659307807981,0.42870616,23254.0,23250.0,0.05344198]
[1659307808213,0.63464716,23255.0,23254.0,0.0750001]
[1659307808214,0.10701057,23255.0,23254.0,0.0750001]
[1659307808463,0.10701057,23255.0,23254.0,0.85370626]
[1659307808719,0.067,23259.0,23258.0,0.6250001]
[1659307808954,0.067,23259.0,23258.0,1.51133977]
[1659307809194,0.001,23263.0,23258.0,1.51133977]
[1659307809195,0.001,23263.0,23260.0,0.0250001]
[1659307809429,0.001,23263.0,23260.0,1.49820626]
[1659307809662,0.001,23263.0,23260.0,1.29275906]
[1659307809886,0.001,23263.0,23260.0,1.35540254]
[1659307810111,0.001,23263.0,23260.0,1.80540254]
[1659307810840,0.001,23263.0,23260.0,1.35540254]
[1659307811086,0.001,23263.0,23260.0,1.34275906]
[1659307811321,0.001,23263.0,23260.0,0.2021529]
[1659307811548,0.001,23263.0,23260.0,0.0695529]
[1659307811549,0.00602876,23262.0,23260.0,0.0695529]
[1659307811793,0.001,23263.0,23260.0,0.0695529]
[1659307812293,0.001,23263.0,23260.0,0.0445528]
[1659307812775,0.42970616,23261.0,23258.0,9.692e-05]
[1659307813723,0.42970616,23261.0,23258.0,0.04934201]
[1659307813950,0.1249999,23259.0,23256.0,0.05653227]
[1659307814198,0.46940808,23260.0,23253.0,0.186442]
[1659307814199,0.42870616,23258.0,23253.0,0.186442]
[1659307814492,0.1249999,23257.0,23253.0,0.079]
[1659307814716,0.46337932,23256.0,23253.0,0.079]
[1659307814947,0.42870616,23255.0,23253.0,0.079]
[1659307815184,0.42870616,23255.0,23253.0,0.07918491]
[1659307815428,0.42870616,23255.0,23253.0,0.079]
[1659307815646,0.42870616,23255.0,23251.0,0.107468]
[1659307815874,0.46940808,23255.0,23249.0,0.90806854]
[1659307816129,0.42870616,23254.0,23249.0,0.08144668]
[1659307816591,0.42870616,23259.0,23250.0,0.15404621]
[1659307816824,0.00085023,23255.0,23252.0,0.107456]
[1659307817076,0.42955639,23255.0,23253.0,0.107456]
[1659307817315,0.42955639,23255.0,23253.0,0.157456]
[1659307817538,0.42955639,23255.0,23253.0,0.457456]
[1659307817758,0.00085023,23255.0,23254.0,0.0250001]
[1659307819222,0.04155215,23255.0,23254.0,0.0250001]
[1659307819489,0.47025831,23255.0,23253.0,0.35]
[1659307819703,0.42955639,23255.0,23253.0,0.05]
[1659307819971,0.42870616,23255.0,23252.0,0.10470271]
[1659307820894,0.42955639,23255.0,23252.0,0.10470271]
[1659307821332,0.42955639,23255.0,23252.0,0.21216571]
[1659307821798,0.42870616,23255.0,23254.0,0.16521872]
[1659307822052,0.42870616,23255.0,23254.0,0.21521872]
[1659307826596,0.42870616,23255.0,23254.0,0.16521872]
[1659307826597,0.73270716,23255.0,23254.0,0.16521872]
[1659307826822,0.77340908,23255.0,23254.0,0.16521872]
[1659307827264,0.82340908,23255.0,23254.0,0.16521872]
[1659307827488,0.87340908,23255.0,23254.0,0.16521872]
[1659307828395,0.82340908,23255.0,23254.0,0.16521872]
[1659307829779,0.87340908,23255.0,23254.0,0.16521872]
[1659307829997,0.82340908,23255.0,23254.0,0.16521872]
[1659307830216,0.81778648,23255.0,23254.0,0.16521872]
[1659307830443,0.81712794,23255.0,23254.0,0.16521872]
[1659307832267,0.86712794,23255.0,23254.0,0.16521872]
[1659307833378,0.51312694,23255.0,23254.0,0.16521872]
[1659307833653,0.76712794,23255.0,23254.0,0.16521872]
[1659307833884,0.46312694,23255.0,23254.0,0.16521872]
[1659307834108,0.76712794,23255.0,23254.0,0.16521872]
[1659307834342,0.42242502,23255.0,23254.0,0.16521872]
[1659307834577,0.42242502,23255.0,23254.0,0.26396454]
[1659307837261,0.42242502,23255.0,23254.0,0.56396454]
[1659307837806,0.46312694,23255.0,23254.0,0.26396454]
[1659307838186,0.42242502,23255.0,23254.0,0.26396454]
[1659307839277,0.42242502,23255.0,23254.0,0.56396454]
[1659307839933,0.42242502,23255.0,23254.0,0.26396454]
[1659307840802,0.42845378,23255.0,23254.0,0.26396454]
[1659307841017,0.46312694,23255.0,23254.0,0.26396454]
[1659307841233,0.42242502,23255.0,23254.0,0.26396454]
[1659307850113,0.72642602,23255.0,23254.0,0.26396454]
[1659307850513,1.02642602,23255.0,23254.0,0.16521872]
[1659307850811,0.82642602,23255.0,23254.0,0.16521872]
[1659307853280,1.27402602,23255.0,23254.0,0.16521872]
[1659307853972,1.2748956,23255.0,23254.0,0.16521872]
[1659307854211,0.7272956,23255.0,23254.0,0.16521872]
[1659307854685,0.42319382,23255.0,23254.0,0.16521872]
[1659307855147,0.0007688,23255.0,23254.0,0.16521872]
[1659307855360,0.0007688,23255.0,23254.0,0.3612622]
[1659307855593,0.0007688,23255.0,23254.0,1.08996836]
[1659307855849,0.0007688,23255.0,23254.0,1.68064836]
[1659307856057,0.001,23261.0,23254.0,1.68064836]
[1659307856277,0.42970616,23261.0,23259.0,0.1334]
[1659307856495,0.42970616,23261.0,23259.0,0.1834]
[1659307856713,0.42970616,23261.0,23260.0,0.0250001]
[1659307856944,0.73370716,23261.0,23260.0,0.0250001]
[1659307857164,0.73370716,23261.0,23259.0,0.23491988]
[1659307857392,0.304001,23260.0,23259.0,0.10151988]
[1659307857617,0.42970616,23261.0,23259.0,0.10151988]
[1659307857859,0.42970616,23261.0,23260.0,0.0250001]
[1659307858090,0.73457487,23261.0,23260.0,0.0250001]
[1659307858328,0.43057387,23261.0,23260.0,0.0250001]
[1659307858842,0.43057387,23261.0,23255.0,0.27265972]
[1659307858843,0.47337387,23261.0,23255.0,0.27265972]
[1659307859077,0.47337387,23261.0,23255.0,0.16521872]
[1659307859078,0.73270716,23260.0,23255.0,0.16521872]
[1659307859287,0.73270716,23259.0,23255.0,0.21071309]
[1659307859507,0.77340908,23258.0,23255.0,0.21071309]
[1659307859733,0.42870616,23257.0,23255.0,0.21071309]
[1659307859967,0.1249999,23256.0,23255.0,0.21071309]
[1659307860178,0.85770706,23256.0,23255.0,0.21071309]
[1659307860427,0.304001,23256.0,23255.0,0.74331309]
[1659307860644,0.001,23263.0,23256.0,0.1325]
[1659307860989,0.001,23263.0,23260.0,0.1584001]
[1659307860990,0.43057387,23261.0,23260.0,0.1584001]
[1659307861104,0.00186771,23261.0,23260.0,0.2084001]
[1659307861333,0.00186771,23261.0,23260.0,0.66938626]
[1659307861565,0.001,23270.0,23260.0,0.96938626]
[1659307861792,0.001,23270.0,23269.0,0.1326]
[1659307861793,0.42970616,23270.0,23269.0,0.1326]
[1659307862024,0.001,23270.0,23269.0,0.1789788]
[1659307862261,0.001,23270.0,23269.0,0.52852306]
[1659307862506,0.001,23270.0,23269.0,0.8907108]
[1659307862733,0.001,23270.0,23269.0,0.59025506]
[1659307862974,0.001,23270.0,23269.0,0.62205932]
[1659307863212,0.001,23270.0,23269.0,0.58934358]
[1659307863470,0.001,23270.0,23269.0,0.4558321]
[1659307863707,0.001,23270.0,23269.0,0.82143904]
[1659307863932,0.001,23270.0,23269.0,0.3918214]
[1659307864170,0.001,23270.0,23269.0,0.04136566]
[1659307864402,0.001,23270.0,23265.0,1.173388]
[1659307864403,0.42970616,23270.0,23265.0,0.1334]
[1659307864629,0.42970616,23270.0,23264.0,0.07854426]
[1659307864630,0.42870616,23269.0,23264.0,0.07854426]
[1659307864858,0.47870616,23269.0,23264.0,0.07854426]
[1659307865099,0.42870616,23268.0,23264.0,0.07854426]
[1659307865554,0.42870616,23268.0,23264.0,0.15147482]
[1659307865803,0.45370606,23268.0,23264.0,0.15147482]
[1659307866047,0.46940808,23267.0,23264.0,0.15147482]
[1659307866306,0.42870616,23267.0,23265.0,0.00020828]
[1659307866526,0.42870616,23267.0,23264.0,0.15147482]
[1659307866748,0.45370606,23267.0,23264.0,0.15147482]
[1659307866974,0.42870616,23267.0,23264.0,0.31669354]
[1659307867227,0.42870616,23269.0,23266.0,0.1584001]
[1659307867450,0.001,23270.0,23269.0,0.13214426]
[1659307867681,0.001,23270.0,23269.0,0.1065047]
[1659307867910,0.001,23270.0,23269.0,0.40559322]
[1659307868111,0.001,23270.0,23269.0,0.40513748]
[1659307868330,0.001,23270.0,23269.0,0.40443424]
[1659307868767,0.001,23270.0,23269.0,0.4039785]
[1659307868978,0.002,23284.0,23270.0,0.04512383]
[1659307869187,0.5541618,23279.0,23274.0,0.13214426]
[1659307869389,0.42870616,23278.0,23275.0,0.04128723]
[1659307869589,0.304001,23277.0,23275.0,0.04083149]
[1659307869962,0.4541618,23277.0,23275.0,0.14728947]
[1659307870190,0.42870616,23277.0,23276.0,0.05]
[1659307870416,0.42870616,23277.0,23276.0,0.10207086]
[1659307870634,0.42870616,23277.0,23276.0,0.10116084]
[1659307870874,0.46940808,23277.0,23276.0,0.10070583]
[1659307871100,1.28721213,23277.0,23273.0,0.04892792]
[1659307871340,1.28721213,23277.0,23273.0,0.04847291]
[1659307871341,0.73270716,23276.0,23273.0,0.04847291]
[1659307871550,0.55450497,23277.0,23273.0,0.04756289]
[1659307871551,0.73270716,23275.0,23273.0,0.04756289]
[1659307871791,0.89283596,23274.0,23273.0,0.04710788]
[1659307872002,0.8581628,23274.0,23273.0,0.04665287]
[1659307872220,0.5541618,23274.0,23273.0,0.04619786]
[1659307872472,0.5541618,23274.0,23273.0,0.04574285]
[1659307872702,0.001,23282.0,23273.0,0.04528784]
[1659307872928,0.5541618,23279.0,23273.0,0.04483283]
[1659307873159,0.5541618,23279.0,23276.0,0.04349043]
[1659307873160,0.73270716,23278.0,23276.0,0.04349043]
[1659307873374,0.8581628,23277.0,23276.0,0.04258041]
[1659307873602,0.8581628,23277.0,23276.0,0.05]
[1659307873603,0.73270716,23277.0,23276.0,0.05]
[1659307873857,0.73270716,23277.0,23276.0,0.04908998]
[1659307874074,0.73270716,23277.0,23276.0,0.1039061]
[1659307874284,0.73270716,23277.0,23276.0,0.10345109]
[1659307874496,0.73270716,23277.0,23276.0,0.10299608]
[1659307874714,0.73270716,23277.0,23276.0,0.10254107]
[1659307874943,0.73270716,23277.0,23276.0,0.10208606]
[1659307875163,0.73270716,23277.0,23276.0,0.10163105]
[1659307875389,0.73270716,23277.0,23276.0,0.10117604]
[1659307875594,0.73270716,23277.0,23276.0,0.10072103]
[1659307875815,0.73270716,23277.0,23276.0,0.10026602]
[1659307876040,0.73270716,23277.0,23276.0,0.09981101]
[1659307876375,0.73270716,23277.0,23276.0,0.099356]
[1659307876473,0.73270716,23277.0,23276.0,0.09890099]
[1659307876708,0.73270716,23277.0,23276.0,0.09799097]
[1659307876921,0.73270716,23277.0,23276.0,0.09753596]
[1659307877140,0.73270716,23277.0,23276.0,0.26184466]
[1659307877393,0.73270716,23277.0,23276.0,0.26138965]
[1659307877605,0.73270716,23277.0,23276.0,0.26093464]
[1659307878771,0.73270716,23277.0,23276.0,0.2052085]
[1659307878996,0.73270716,23277.0,23276.0,0.25453514]
[1659307879218,0.73270716,23277.0,23276.0,0.25408013]
[1659307879439,0.73270716,23277.0,23276.0,0.25362512]
[1659307879895,0.73270716,23277.0,23276.0,0.25317011]
[1659307880170,0.73270716,23277.0,23276.0,0.2527151]
[1659307880368,0.42870616,23277.0,23276.0,0.2527151]
[1659307880602,0.42870616,23277.0,23276.0,0.25180508]
[1659307881063,0.42870616,23277.0,23276.0,0.25135007]
[1659307881298,0.42870616,23277.0,23276.0,0.25089506]
[1659307881771,0.42870616,23277.0,23276.0,0.25044005]
[1659307882479,0.001,23282.0,23276.0,0.25044005]
[1659307882480,0.42870616,23279.0,23276.0,0.24998504]
[1659307882748,0.42870616,23279.0,23278.0,0.1328]
[1659307882979,0.42970616,23280.0,23278.0,0.17732977]
[1659307883200,0.42970616,23280.0,23278.0,0.47732977]
[1659307883422,0.42970616,23280.0,23279.0,0.00167963]
[1659307883874,0.42970616,23280.0,23277.0,0.10735]
[1659307883875,0.40970616,23280.0,23277.0,0.10735]
[1659307884140,0.40970616,23280.0,23276.0,0.37992272]
[1659307884141,0.40970616,23280.0,23276.0,0.27257072]
[1659307884589,0.40970616,23280.0,23276.0,0.27211571]
[1659307884808,0.03467316,23279.0,23276.0,0.27211571]
[1659307885052,0.42870616,23278.0,23276.0,0.2716607]
[1659307885255,0.42870616,23278.0,23276.0,0.3790247]
[1659307885524,0.42870616,23278.0,23277.0,0.00010674]
[1659307885734,0.42870616,23278.0,23277.0,0.0428]
[1659307885970,0.42870616,23278.0,23276.0,0.37867243]
[1659307886189,0.42870616,23278.0,23277.0,0.105]
[1659307886419,0.4541618,23278.0,23277.0,0.105]
[1659307886642,0.42870616,23278.0,23277.0,0.10454499]
[1659307886848,0.42870616,23278.0,23277.0,0.2693087]
[1659307887072,0.42870616,23278.0,23277.0,0.27090982]
[1659307887309,0.42870616,23281.0,23278.0,0.42870616]
[1659307887570,0.001,23282.0,23281.0,0.05]
[1659307887849,0.001,23286.0,23283.0,0.04909144]
[1659307888050,0.001,23286.0,23283.0,0.42870616]
[1659307888282,0.001,23286.0,23284.0,0.3]
[1659307888515,0.001,23286.0,23284.0,0.56032559]
[1659307888983,0.04370856,23285.0,23284.0,0.04570159]
[1659307889236,0.47241472,23285.0,23282.0,0.04569765]
[1659307889464,0.47241472,23285.0,23282.0,0.09569765]
[1659307889465,0.354001,23284.0,23282.0,0.09569765]
[1659307889696,0.02545564,23284.0,23282.0,0.09569765]
[1659307889921,0.42961472,23285.0,23282.0,0.09569765]
[1659307890145,0.45507036,23285.0,23282.0,0.09569765]
[1659307890827,0.001,23286.0,23282.0,0.09569765]
[1659307891054,0.001,23286.0,23284.0,0.22263314]
[1659307891285,0.001,23286.0,23284.0,0.7013393]
[1659307891511,0.001,23286.0,23285.0,0.36181493]
[1659307891845,0.001,23286.0,23285.0,0.93071493]
[1659307892538,0.4748642,23298.0,23286.0,0.107308]
[1659307892796,0.42870616,23296.0,23287.0,0.3]
[1659307893256,0.42870616,23296.0,23287.0,0.407301]
[1659307893491,0.42870616,23296.0,23287.0,0.107301]
[1659307893726,0.42870616,23295.0,23287.0,0.107301]
[1659307893963,0.42870616,23295.0,23288.0,0.107302]
[1659307894210,0.4541618,23295.0,23290.0,0.321873]
[1659307894438,0.42870616,23294.0,23291.0,0.107294]
[1659307894677,0.42870616,23294.0,23292.0,7.999e-05]
[1659307895138,0.42870616,23294.0,23292.0,0.10737099]
[1659307895652,0.42870616,23294.0,23291.0,0.564585]
[1659307895653,0.49542547,23294.0,23291.0,0.107294]
[1659307895880,0.73270716,23293.0,23288.0,0.107316]
[1659307896115,0.42870616,23292.0,23288.0,0.107316]
[1659307896588,0.04126367,23291.0,23288.0,0.15193588]
[1659307896841,0.04126367,23291.0,23289.0,0.05548611]
[1659307896842,0.42870616,23291.0,23289.0,0.05548611]
[1659307897051,0.05,23290.0,23289.0,0.05548611]
[1659307897318,0.40370616,23291.0,23289.0,0.05548611]
[1659307898408,0.4291618,23291.0,23289.0,0.05548611]
[1659307899096,0.4291618,23291.0,23289.0,0.05556611]
[1659307899097,0.42870616,23290.0,23289.0,0.05556611]
[1659307899539,0.0186,23300.0,23292.0,0.05]
[1659307899540,0.002,23300.0,23292.0,0.05]
[1659307899767,0.002,23300.0,23294.0,0.239666]
[1659307900006,0.002,23300.0,23295.0,0.42870616]
[1659307900240,0.002,23300.0,23296.0,0.3]
[1659307900473,0.002,23300.0,23297.0,7.997e-05]
[1659307901397,0.04326367,23300.0,23297.0,7.997e-05]
[1659307901623,0.002,23300.0,23297.0,7.997e-05]
[1659307901842,0.3341555,23306.0,23297.0,7.997e-05]
[1659307902123,6.722e-05,23301.0,23297.0,0.05325112]
[1659307902355,0.42877338,23301.0,23297.0,0.04237525]
[1659307902798,0.42870616,23301.0,23297.0,0.04237525]
[1659307903288,0.304001,23300.0,23297.0,0.04237525]
[1659307903476,6.722e-05,23301.0,23299.0,0.1]
[1659307903704,6.722e-05,23301.0,23299.0,0.1083231]
[1659307904125,6.722e-05,23301.0,23299.0,0.4083231]
[1659307904354,0.42897502,23305.0,23299.0,0.4083231]
[1659307904355,0.42870616,23305.0,23300.0,0.19806219]
[1659307904591,0.304001,23304.0,23301.0,0.05]
[1659307904860,0.47870616,23303.0,23301.0,0.05]
[1659307905100,0.304001,23302.0,23301.0,0.10815918]
[1659307905328,0.00021099,23305.0,23301.0,0.40073043]
[1659307905559,0.00021099,23305.0,23304.0,0.4]
[1659307905797,0.001,23307.0,23305.0,0.05]
[1659307906036,0.001,23307.0,23306.0,0.4]
[1659307906295,0.001,23307.0,23306.0,0.10160029]
[1659307906529,0.58313853,23320.0,23308.0,0.1]
[1659307906530,0.001,23317.0,23308.0,0.1]
[1659307906773,0.42870616,23317.0,23309.0,0.61110616]
[1659307906992,0.42870616,23317.0,23310.0,0.39256918]
[1659307907293,0.501,23321.0,23311.0,0.09127649]
[1659307907294,0.42870616,23320.0,23311.0,0.09127649]
[1659307907527,0.304001,23319.0,23314.0,0.04163556]
[1659307907773,0.001,23321.0,23316.0,0.04196461]
[1659307907774,0.73270716,23318.0,23316.0,0.04196461]
[1659307908003,0.001,23321.0,23311.0,0.47870616]
[1659307908004,0.42870616,23316.0,23311.0,0.05]
[1659307908264,0.354001,23315.0,23309.0,0.053]
[1659307908493,0.73270716,23314.0,23309.0,0.003]
[1659307908722,0.55729359,23315.0,23309.0,0.003]
[1659307908723,0.73270716,23313.0,23309.0,0.003]
[1659307908956,0.55729359,23315.0,23309.0,0.003]
[1659307908957,0.95,23310.0,23309.0,0.003]
[1659307909213,1.68270716,23310.0,23309.0,0.003]
[1659307909441,1.68270716,23310.0,23306.0,0.16521872]